[Event "26th OIBM 2023"]
[Site "Gmund am Tegernsee"]
[Date "2023.11.03"]
[Round "7.31"]
[White "Bracker, Arne"]
[Black "Casadio, Niccolo`"]
[Result "1-0"]
[ECO "C18"]
[WhiteElo "2279"]
[BlackElo "2082"]
[Annotator "RC"]
[PlyCount "95"]
[EventDate "2023.10.04"]
[EventType "swiss"]
[EventCountry "GER"]
[SourceTitle "playchess.com"]
[Source "ChessBase"]
[SourceQuality "1"]
[TimeControl "40/5400+30:1800+30"]

1. e4 {[%emt 0:00:04]} e6 {[%emt 0:00:06]} 2. d4 {[%emt 0:00:07]} d5 {[%emt 0:00:05]} 3. Nc3 {[%emt 0:00:15]} Bb4 {[%emt 0:00:06]} 4. e5 {[%emt 0:00:14]} c5 {[%emt 0:00:07]} 5. a3 {[%emt 0:00:07]} Bxc3+ {[%emt 0:00:05]} 6. bxc3 {[%emt 0:00:06]} Qc7 {[%emt 0:00:05]} 7. Qg4 {[%emt 0:00:24]} Ne7 {[%emt 0:00:05]} 8. Bd3 {[%emt 0:00:39]} c4 {[%emt 0:01:28]} 9. Be2 {[%emt 0:00:18]} Qa5 {[%emt 0:00:08]} 10. Bd2 {[%emt 0:00:16]} Nf5 {[%emt 0:00:08]} 11. h4 {[%emt 0:00:47]} Qa4 {[%emt 0:00:52]} 12. h5 {[%emt 0:01:52]} h6 {[%emt 0:00:44]} 13. Kd1 {[%emt 0:01:53]} Nc6 {[%emt 0:01:59]} 14. Nf3 {[%emt 0:00:23]} Bd7 {[%emt 0:00:53]} 15. Nh4 {[%emt 0:00:37]} Nce7 {[%emt 0:00:30]} 16. Nxf5 {[%emt 0:00:37]} Nxf5 {[%emt 0:00:06]} 17. Qf4 {[%emt 0:00:20]} Rf8 {[%emt 0:07:05]} 18. g4 {[%emt 0:05:26]} Ne7 {[%emt 0:00:41]} 19. Be3 {[%emt 0:00:38]} O-O-O {[%emt 0:02:34]} 20. Kd2 {[%emt 0:02:08]} f6 {[%emt 0:16:17]} 21. exf6 {[%emt 0:13:28]} Rxf6 {[%emt 0:00:13]} 22. Qd6 {[%emt 0:10:29]} Nc6 {[%emt 0:00:13]} 23. g5 {[%emt 0:05:28]} hxg5 {[%emt 0:03:54]} 24. Bxg5 {[%emt 0:01:10]} Rxf2 {[%emt 0:00:21]} 25. Raf1 {[%emt 0:22:41]} Rxe2+ {[%emt 0:07:50]} 26. Kxe2 {[%emt 0:00:07]} Qxc2+ {[%emt 0:00:05]} 27. Kf3 {[%emt 0:02:23]} Qxc3+ {[%emt 0:04:27]} 28. Kg2 {[%emt 0:00:32]} Qxd4 {[%emt 0:07:12]} 29. Bxd8 {[%emt 0:03:18]} Qg4+ {[%emt 0:02:13]} 30. Qg3 {[%emt 0:03:06]} Qxg3+ {[%emt 0:00:11]} 31. Kxg3 {[%emt 0:00:04]} Kxd8 {[%emt 0:00:13]} 32. Rf7 {[%emt 0:01:53]} Nd4 {[%emt 0:01:22]} 33. Rxg7 {[%emt 0:02:38]} Nf5+ {[%emt 0:00:29]} 34. Kf2 {[%emt 0:00:27]} Kc7 {[%emt 0:01:55]} 35. h6 {[%emt 0:01:44]} Nxh6 {[%emt 0:00:06]} 36. Rxh6 {[%emt 0:00:08]} Kd6 {[%emt 0:00:04]} 37. Ke3 {[%emt 0:01:33]} a5 {[%emt 0:01:29]} 38. Kd4 {[%emt 0:02:12]} Bc6 {[%emt 0:00:54]} 39. Rgg6 {[%emt 0:03:44]} Bd7 {[%emt 0:00:57]} 40. a4 {[%emt 0:00:37]} b6 {[%emt 0:00:03]} 41. Rf6 {[%emt 0:31:08]} Bc8 {[%emt 0:31:08]} 42. Rf8 {[%emt 0:08:03]} Bd7 {[%emt 0:02:13]} 43. Rb8 {[%emt 0:01:21]} Kc7 {[%emt 0:02:45]} 44. Rh7 {[%emt 0:01:48]} Kxb8 {[%emt 0:01:41]} 45. Rxd7 {[%emt 0:00:12]} b5 {[%emt 0:00:13]} 46. axb5 {[%emt 0:00:57]} a4 {[%emt 0:00:05]} 47. Rd6 {[%emt 0:02:48]} a3 {[%emt 0:00:17]} 48. Rxe6 {[%emt 0:00:20]} 1-0

[Event "26th OIBM 2023"]
[Site "Gmund am Tegernsee"]
[Date "2023.11.03"]
[Round "7.32"]
[White "Schnepp, Gunnar"]
[Black "Barthel, Ansgar"]
[Result "1/2-1/2"]
[ECO "A43"]
[WhiteElo "2278"]
[BlackElo "2056"]
[Annotator "RC"]
[PlyCount "51"]
[EventDate "2023.10.04"]
[EventType "swiss"]
[EventCountry "GER"]
[SourceTitle "playchess.com"]
[Source "ChessBase"]
[SourceQuality "1"]
[TimeControl "40/5400+30:1800+30"]

1. d4 {[%emt 0:00:03]} c5 {[%emt 0:00:28]} 2. d5 {[%emt 0:00:53]} d6 {[%emt 0:00:07]} 3. c4 {[%emt 0:07:56]} g6 {[%emt 0:00:34]} 4. e4 {[%emt 0:11:19]} Bg7 {[%emt 0:00:10]} 5. h3 {[%emt 0:06:15]} e6 {[%emt 0:03:34]} 6. Nf3 {[%emt 0:02:58]} Ne7 {[%emt 0:01:12]} 7. Be2 {[%emt 0:09:37]} h6 {[%emt 0:01:38]} 8. O-O {[%emt 0:06:39]} exd5 {[%emt 0:02:40]} 9. cxd5 {[%emt 0:03:32]} O-O {[%emt 0:00:38]} 10. Nc3 {[%emt 0:10:54]} a6 {[%emt 0:00:18]} 11. Bf4 {[%emt 0:03:23]} g5 {[%emt 0:10:24]} 12. Bh2 {[%emt 0:00:52]} Ng6 {[%emt 0:00:07]} 13. a4 {[%emt 0:01:18]} Qe7 {[%emt 0:15:14]} 14. Qc2 {[%emt 0:11:20]} f5 {[%emt 0:26:42]} 15. exf5 {[%emt 0:01:13]} Bxf5 {[%emt 0:00:05]} 16. Bd3 {[%emt 0:00:23]} Bxd3 {[%emt 0:00:11]} 17. Qxd3 {[%emt 0:00:03]} Nf4 {[%emt 0:00:11]} 18. Bxf4 {[%emt 0:00:27]} Rxf4 {[%emt 0:00:07]} 19. Rae1 {[%emt 0:00:45]} Qf8 {[%emt 0:01:15]} 20. Qe3 {[%emt 0:07:25]} Rxf3 {[%emt 0:26:51]} 21. gxf3 {[%emt 0:00:47]} Be5 {[%emt 0:00:06]} 22. Qe4 {[%emt 0:03:07]} Nd7 {[%emt 0:01:26]} 23. Qg6+ {[%emt 0:02:21]} Qg7 {[%emt 0:00:05]} 24. Qe6+ {[%emt 0:01:36]} Kh8 {[%emt 0:00:05]} 25. Ne4 {[%emt 0:03:45]} Nf8 {[%emt 0:00:18]} 26. Qg4 {[%emt 0:04:39]} 1/2-1/2

[Event "26th OIBM 2023"]
[Site "Gmund am Tegernsee"]
[Date "2023.11.03"]
[Round "7.33"]
[White "Schaffarczyk, Andre"]
[Black "Maier, Alexander"]
[Result "0-1"]
[ECO "B01"]
[WhiteElo "2118"]
[BlackElo "2277"]
[Annotator "RC"]
[PlyCount "102"]
[EventDate "2023.10.04"]
[EventType "swiss"]
[EventCountry "GER"]
[SourceTitle "playchess.com"]
[Source "ChessBase"]
[SourceQuality "1"]
[TimeControl "40/5400+30:1800+30"]

1. e4 {[%emt 0:00:05]} d5 {[%emt 0:00:20]} 2. exd5 {[%emt 0:00:24]} Nf6 {[%emt 0:00:05]} 3. d4 {[%emt 0:00:30]} Bg4 {[%emt 0:02:15]} 4. f3 {[%emt 0:13:16]} Bf5 {[%emt 0:00:53]} 5. Bb5+ {[%emt 0:02:50]} c6 {[%emt 0:12:47]} 6. dxc6 {[%emt 0:06:01]} Nxc6 {[%emt 0:00:03]} 7. Nc3 {[%emt 0:10:11]} Qb6 {[%emt 0:03:51]} 8. Be3 {[%emt 0:06:17]} O-O-O {[%emt 0:02:41]} 9. Bxc6 {[%emt 0:04:24]} bxc6 {[%emt 0:04:53]} 10. Qc1 {[%emt 0:22:35]} e6 {[%emt 0:11:50]} 11. Nge2 {[%emt 0:00:50]} c5 {[%emt 0:01:06]} 12. dxc5 {[%emt 0:08:15]} Bxc5 {[%emt 0:00:08]} 13. Kf2 {[%emt 0:03:20]} Bxc2 {[%emt 0:16:36]} 14. Bxc5 {[%emt 0:03:14]} Qxc5+ {[%emt 0:00:50]} 15. Qe3 {[%emt 0:00:22]} Qxe3+ {[%emt 0:01:07]} 16. Kxe3 {[%emt 0:00:07]} Rd3+ {[%emt 0:04:57]} 17. Kf2 {[%emt 0:00:15]} Rd2 {[%emt 0:00:42]} 18. Rac1 {[%emt 0:02:37]} Kb7 {[%emt 0:02:19]} 19. Nb1 {[%emt 0:04:46]} Bxb1 {[%emt 0:00:10]} 20. Rxb1 {[%emt 0:00:03]} Rc8 {[%emt 0:02:24]} 21. Rhd1 {[%emt 0:00:46]} Rxd1 {[%emt 0:00:03]} 22. Rxd1 {[%emt 0:00:09]} Rc2 {[%emt 0:00:01]} 23. Rb1 {[%emt 0:04:32]} Nd5 {[%emt 0:00:16]} 24. Ke1 {[%emt 0:01:49]} Ne3 {[%emt 0:03:25]} 25. g3 {[%emt 0:00:41]} Nc4 {[%emt 0:01:14]} 26. Kd1 {[%emt 0:02:52]} Rxb2 {[%emt 0:00:23]} 27. Rxb2+ {[%emt 0:00:21]} Nxb2+ {[%emt 0:00:02]} 28. Kc2 {[%emt 0:00:09]} Nc4 {[%emt 0:00:18]} 29. Kd3 {[%emt 0:00:32]} Nd6 {[%emt 0:00:14]} 30. Kd4 {[%emt 0:01:06]} Kc6 {[%emt 0:01:33]} 31. g4 {[%emt 0:01:27]} f6 {[%emt 0:01:34]} 32. f4 {[%emt 0:00:28]} g5 {[%emt 0:03:24]} 33. fxg5 {[%emt 0:00:36]} e5+ {[%emt 0:00:02]} 34. Kd3 {[%emt 0:00:58]} fxg5 {[%emt 0:00:04]} 35. Ng3 {[%emt 0:00:36]} Kd5 {[%emt 0:00:23]} 36. Nh5 {[%emt 0:00:29]} e4+ {[%emt 0:00:15]} 37. Ke3 {[%emt 0:00:31]} Ke5 {[%emt 0:00:17]} 38. h3 {[%emt 0:00:28]} Nc4+ {[%emt 0:00:25]} 39. Ke2 {[%emt 0:00:14]} a5 {[%emt 0:02:07]} 40. Ng7 {[%emt 0:00:48]} a4 {[%emt 0:02:47]} 41. Ne8 {[%emt 0:12:32]} Nb6 {[%emt 0:00:50]} 42. Nc7 {[%emt 0:04:59]} h6 {[%emt 0:03:56]} 43. Nb5 {[%emt 0:01:02]} Kf4 {[%emt 0:04:33]} 44. Nc3 {[%emt 0:02:53]} Ke5 {[%emt 0:00:25]} 45. Nb5 {[%emt 0:05:11]} Nd5 {[%emt 0:01:51]} 46. a3 {[%emt 0:01:10]} Kf4 {[%emt 0:03:19]} 47. Nd6 {[%emt 0:03:24]} e3 {[%emt 0:01:21]} 48. Nc4 {[%emt 0:02:22]} Kg3 {[%emt 0:01:08]} 49. Nb2 {[%emt 0:00:53]} Kxh3 {[%emt 0:00:24]} 50. Kf3 {[%emt 0:00:34]} Nc3 {[%emt 0:04:31]} 51. Kxe3 {[%emt 0:00:28]} Kxg4 {[%emt 0:00:56]} 0-1

[Event "26th OIBM 2023"]
[Site "Gmund am Tegernsee"]
[Date "2023.11.03"]
[Round "7.34"]
[White "Bettalli, Francesco"]
[Black "Litzka, Richard"]
[Result "1/2-1/2"]
[ECO "B01"]
[WhiteElo "2274"]
[BlackElo "2036"]
[Annotator "RC"]
[PlyCount "70"]
[EventDate "2023.10.04"]
[EventType "swiss"]
[EventCountry "GER"]
[SourceTitle "playchess.com"]
[Source "ChessBase"]
[SourceQuality "1"]
[TimeControl "40/5400+30:1800+30"]

1. e4 {[%emt 0:00:02]} d5 {[%emt 0:00:04]} 2. exd5 {[%emt 0:00:08]} Qxd5 {[%emt 0:00:04]} 3. Nf3 {[%emt 0:00:12]} Bg4 {[%emt 0:00:05]} 4. Be2 {[%emt 0:00:05]} Nc6 {[%emt 0:00:04]} 5. h3 {[%emt 0:00:09]} Bxf3 {[%emt 0:00:06]} 6. Bxf3 {[%emt 0:00:07]} Qe6+ {[%emt 0:00:03]} 7. Qe2 {[%emt 0:00:12]} Nd4 {[%emt 0:00:03]} 8. Qxe6 {[%emt 0:00:08]} Nxf3+ {[%emt 0:00:04]} 9. gxf3 {[%emt 0:00:10]} fxe6 {[%emt 0:00:03]} 10. d3 {[%emt 0:00:08]} g6 {[%emt 0:00:46]} 11. Nc3 {[%emt 0:01:10]} Nh6 {[%emt 0:11:54]} 12. Bxh6 {[%emt 0:00:49]} Bxh6 {[%emt 0:00:07]} 13. Ne4 {[%emt 0:00:30]} O-O-O {[%emt 0:02:22]} 14. Ke2 {[%emt 0:01:22]} Rhf8 {[%emt 0:00:40]} 15. h4 {[%emt 0:01:16]} Rd5 {[%emt 0:02:38]} 16. h5 {[%emt 0:01:24]} gxh5 {[%emt 0:02:09]} 17. Rag1 {[%emt 0:01:05]} Rdf5 {[%emt 0:04:23]} 18. Rh3 {[%emt 0:00:19]} b6 {[%emt 0:04:31]} 19. Rgh1 {[%emt 0:02:58]} Bg7 {[%emt 0:02:22]} 20. b4 {[%emt 0:07:22]} a5 {[%emt 0:04:56]} 21. a3 {[%emt 0:00:05]} Bb2 {[%emt 0:21:32]} 22. Rxh5 {[%emt 0:02:25]} Bxa3 {[%emt 0:03:03]} 23. bxa5 {[%emt 0:00:03]} bxa5 {[%emt 0:02:29]} 24. Rxh7 {[%emt 0:03:25]} Kd7 {[%emt 0:00:12]} 25. Rh8 {[%emt 0:03:22]} Bb4 {[%emt 0:03:07]} 26. Rxf8 {[%emt 0:00:39]} Rxf8 {[%emt 0:00:04]} 27. Ra1 {[%emt 0:01:57]} Ra8 {[%emt 0:00:13]} 28. c3 {[%emt 0:01:36]} Bd6 {[%emt 0:00:07]} 29. Kd2 {[%emt 0:03:02]} Kc6 {[%emt 0:07:00]} 30. Kc2 {[%emt 0:00:50]} a4 {[%emt 0:01:39]} 31. Nd2 {[%emt 0:03:53]} a3 {[%emt 0:08:38]} 32. Nc4 {[%emt 0:00:19]} Rf8 {[%emt 0:00:56]} 33. Kd2 {[%emt 0:00:46]} Ra8 {[%emt 0:03:09]} 34. Kc2 {[%emt 0:00:02]} Rf8 {[%emt 0:00:51]} 35. Kd2 {[%emt 0:00:06]} Ra8 {[%emt 0:00:05]} 1/2-1/2

[Event "26th OIBM 2023"]
[Site "Gmund am Tegernsee"]
[Date "2023.11.03"]
[Round "7.35"]
[White "Beisteiner, Joachim"]
[Black "Ohler, Julius"]
[Result "1-0"]
[ECO "B12"]
[WhiteElo "2115"]
[BlackElo "2273"]
[Annotator "RC"]
[PlyCount "123"]
[EventDate "2023.10.04"]
[EventType "swiss"]
[EventCountry "GER"]
[SourceTitle "playchess.com"]
[Source "ChessBase"]
[SourceQuality "1"]
[TimeControl "40/5400+30:1800+30"]

1. e4 {[%emt 0:00:07]} c6 {[%emt 0:00:05]} 2. d4 {[%emt 0:00:15]} d5 {[%emt 0:00:04]} 3. e5 {[%emt 0:00:12]} Bf5 {[%emt 0:00:05]} 4. c4 {[%emt 0:00:20]} e6 {[%emt 0:00:14]} 5. Nc3 {[%emt 0:00:14]} Ne7 {[%emt 0:02:13]} 6. a3 {[%emt 0:00:33]} dxc4 {[%emt 0:05:18]} 7. Bxc4 {[%emt 0:00:14]} Nd7 {[%emt 0:00:48]} 8. Nge2 {[%emt 0:00:25]} Nb6 {[%emt 0:01:02]} 9. Bb3 {[%emt 0:00:35]} h6 {[%emt 0:10:47]} 10. O-O {[%emt 0:01:53]} Ned5 {[%emt 0:12:40]} 11. Ng3 {[%emt 0:02:28]} Nxc3 {[%emt 0:02:56]} 12. bxc3 {[%emt 0:00:08]} Bg6 {[%emt 0:00:05]} 13. f4 {[%emt 0:07:41]} Qd7 {[%emt 0:09:25]} 14. f5 {[%emt 0:03:21]} Bxf5 {[%emt 0:02:30]} 15. Nxf5 {[%emt 0:00:15]} exf5 {[%emt 0:00:04]} 16. e6 {[%emt 0:00:14]} fxe6 {[%emt 0:01:00]} 17. Bxe6 {[%emt 0:00:14]} Qxe6 {[%emt 0:02:02]} 18. Re1 {[%emt 0:00:10]} Qxe1+ {[%emt 0:00:33]} 19. Qxe1+ {[%emt 0:00:05]} Kf7 {[%emt 0:00:36]} 20. Qe5 {[%emt 0:03:00]} Be7 {[%emt 0:02:45]} 21. Qxf5+ {[%emt 0:00:45]} Bf6 {[%emt 0:00:04]} 22. Bf4 {[%emt 0:05:23]} Rhe8 {[%emt 0:00:09]} 23. Be5 {[%emt 0:00:41]} Re6 {[%emt 0:00:04]} 24. Rf1 {[%emt 0:01:05]} Nd7 {[%emt 0:00:26]} 25. h3 {[%emt 0:06:05]} Rae8 {[%emt 0:00:22]} 26. Bxf6 {[%emt 0:00:21]} Nxf6 {[%emt 0:00:04]} 27. Kh2 {[%emt 0:01:35]} Kg8 {[%emt 0:00:50]} 28. Rf3 {[%emt 0:03:20]} R8e7 {[%emt 0:04:26]} 29. a4 {[%emt 0:03:55]} a6 {[%emt 0:02:47]} 30. Rg3 {[%emt 0:10:47]} Kf7 {[%emt 0:02:17]} 31. a5 {[%emt 0:02:05]} Kg8 {[%emt 0:01:39]} 32. Rf3 {[%emt 0:00:25]} Kf7 {[%emt 0:01:20]} 33. Rf1 {[%emt 0:01:29]} Rd7 {[%emt 0:03:08]} 34. Rb1 {[%emt 0:02:26]} Ree7 {[%emt 0:01:59]} 35. Rb2 {[%emt 0:04:13]} Re6 {[%emt 0:02:55]} 36. Qf4 {[%emt 0:00:55]} Ree7 {[%emt 0:00:17]} 37. Qg3 {[%emt 0:02:08]} Rd5 {[%emt 0:02:01]} 38. Qb8 {[%emt 0:00:50]} Rdd7 {[%emt 0:00:06]} 39. Rb1 {[%emt 0:00:50]} Nd5 {[%emt 0:02:19]} 40. Qg3 {[%emt 0:01:30]} Nf6 {[%emt 0:02:35]} 41. Re1 {[%emt 0:30:11]} Rxe1 {[%emt 0:30:05]} 42. Qxe1 {[%emt 0:00:05]} Rd5 {[%emt 0:00:08]} 43. Qb1 {[%emt 0:01:00]} Rd7 {[%emt 0:00:04]} 44. c4 {[%emt 0:00:55]} Ke7 {[%emt 0:00:29]} 45. Qf5 {[%emt 0:02:29]} Kd8 {[%emt 0:00:39]} 46. Qe5 {[%emt 0:00:16]} Ne8 {[%emt 0:01:14]} 47. Kg1 {[%emt 0:02:41]} Nd6 {[%emt 0:00:45]} 48. Qc5 {[%emt 0:04:47]} Ne8 {[%emt 0:02:33]} 49. Kf2 {[%emt 0:00:51]} Nf6 {[%emt 0:02:56]} 50. Ke3 {[%emt 0:01:31]} Ke8 {[%emt 0:01:05]} 51. Kd3 {[%emt 0:01:06]} Kf7 {[%emt 0:01:38]} 52. Qf5 {[%emt 0:00:41]} Ke7 {[%emt 0:01:08]} 53. Qe5+ {[%emt 0:00:33]} Kf7 {[%emt 0:00:14]} 54. g4 {[%emt 0:00:38]} Re7 {[%emt 0:00:58]} 55. Qb8 {[%emt 0:00:56]} Rd7 {[%emt 0:00:14]} 56. Qc8 {[%emt 0:01:06]} Ke7 {[%emt 0:00:52]} 57. Qb8 {[%emt 0:01:41]} Kf7 {[%emt 0:00:27]} 58. Kc3 {[%emt 0:01:16]} Kg6 {[%emt 0:00:36]} 59. Qf4 {[%emt 0:00:32]} Rd5 {[%emt 0:01:29]} 60. Kb4 {[%emt 0:01:17]} Rd7 {[%emt 0:01:42]} 61. h4 {[%emt 0:00:34]} Re7 {[%emt 0:01:06]} 62. Qf5+ {[%emt 0:00:29]} 1-0

[Event "26th OIBM 2023"]
[Site "Gmund am Tegernsee"]
[Date "2023.11.03"]
[Round "7.36"]
[White "Renner, Kai"]
[Black "Dalinger, Valeri"]
[Result "1-0"]
[ECO "C88"]
[WhiteElo "2103"]
[BlackElo "2269"]
[Annotator "RC"]
[PlyCount "127"]
[EventDate "2023.10.04"]
[EventType "swiss"]
[EventCountry "GER"]
[SourceTitle "playchess.com"]
[Source "ChessBase"]
[SourceQuality "1"]
[TimeControl "40/5400+30:1800+30"]

1. e4 {[%emt 0:00:02]} e5 {[%emt 0:00:06]} 2. Nf3 {[%emt 0:00:11]} Nc6 {[%emt 0:00:11]} 3. Bb5 {[%emt 0:00:16]} a6 {[%emt 0:00:32]} 4. Ba4 {[%emt 0:00:08]} Nf6 {[%emt 0:00:02]} 5. O-O {[%emt 0:00:20]} Be7 {[%emt 0:00:12]} 6. Re1 {[%emt 0:00:22]} b5 {[%emt 0:00:07]} 7. Bb3 {[%emt 0:00:05]} O-O {[%emt 0:00:07]} 8. a4 {[%emt 0:00:38]} Rb8 {[%emt 0:00:56]} 9. d3 {[%emt 0:03:55]} d6 {[%emt 0:00:23]} 10. c3 {[%emt 0:03:15]} Na5 {[%emt 0:02:17]} 11. Bc2 {[%emt 0:03:19]} c5 {[%emt 0:00:26]} 12. Nbd2 {[%emt 0:00:42]} b4 {[%emt 0:00:46]} 13. d4 {[%emt 0:07:29]} cxd4 {[%emt 0:02:36]} 14. cxd4 {[%emt 0:00:18]} Nc6 {[%emt 0:00:10]} 15. Nb3 {[%emt 0:05:51]} Bg4 {[%emt 0:03:01]} 16. d5 {[%emt 0:11:10]} Na5 {[%emt 0:01:07]} 17. h3 {[%emt 0:03:14]} Bh5 {[%emt 0:00:34]} 18. g4 {[%emt 0:07:04]} Nxb3 {[%emt 0:00:22]} 19. Bxb3 {[%emt 0:00:10]} Bg6 {[%emt 0:00:09]} 20. Bc2 {[%emt 0:02:39]} Nd7 {[%emt 0:01:04]} 21. Be3 {[%emt 0:01:19]} Rc8 {[%emt 0:02:11]} 22. Bd3 {[%emt 0:00:32]} a5 {[%emt 0:04:40]} 23. Rc1 {[%emt 0:05:16]} Rc7 {[%emt 0:01:40]} 24. Qe2 {[%emt 0:05:18]} Qb8 {[%emt 0:01:42]} 25. Rxc7 {[%emt 0:01:21]} Qxc7 {[%emt 0:00:02]} 26. Rc1 {[%emt 0:00:16]} Nc5 {[%emt 0:00:17]} 27. Nd2 {[%emt 0:05:23]} Qd8 {[%emt 0:04:43]} 28. Bxc5 {[%emt 0:03:03]} dxc5 {[%emt 0:00:03]} 29. Nc4 {[%emt 0:01:00]} Bg5 {[%emt 0:02:55]} 30. Rd1 {[%emt 0:00:25]} Bf4 {[%emt 0:00:11]} 31. Kg2 {[%emt 0:01:24]} h5 {[%emt 0:01:28]} 32. Rh1 {[%emt 0:08:11]} hxg4 {[%emt 0:01:41]} 33. hxg4 {[%emt 0:00:05]} f6 {[%emt 0:00:58]} 34. b3 {[%emt 0:01:29]} Kf7 {[%emt 0:00:33]} 35. f3 {[%emt 0:07:05]} Re8 {[%emt 0:06:07]} 36. Qf2 {[%emt 0:01:37]} Qc7 {[%emt 0:00:53]} 37. Kf1 {[%emt 0:01:26]} Rd8 {[%emt 0:01:31]} 38. Qe2 {[%emt 0:03:28]} Qa7 {[%emt 0:01:10]} 39. Ke1 {[%emt 0:00:52]} Qc7 {[%emt 0:02:52]} 40. Kd1 {[%emt 0:00:23]} Qa7 {[%emt 0:00:33]} 41. Kc2 {[%emt 0:30:29]} Qc7 {[%emt 0:30:07]} 42. Kb2 {[%emt 0:00:45]} Qa7 {[%emt 0:03:24]} 43. Qf1 {[%emt 0:01:33]} Qc7 {[%emt 0:02:26]} 44. Be2 {[%emt 0:01:16]} Qa7 {[%emt 0:01:04]} 45. Qd1 {[%emt 0:01:10]} Ke7 {[%emt 0:04:45]} 46. Ka2 {[%emt 0:01:50]} Kd7 {[%emt 0:00:29]} 47. Qd3 {[%emt 0:04:51]} Rb8 {[%emt 0:03:38]} 48. Nb2 {[%emt 0:00:00]} Bh6 {[%emt 0:00:00]} 49. Rd1 {[%emt 0:00:00]} Bf7 {[%emt 0:00:00]} 50. Kb1 {[%emt 0:00:00]} Kd8 {[%emt 0:00:00]} 51. Kc2 {[%emt 0:00:00]} Kd7 {[%emt 0:00:00]} 52. Qa6 {[%emt 0:00:00]} Qxa6 {[%emt 0:00:00]} 53. Bxa6 {[%emt 0:00:00]} Kd8 {[%emt 0:00:00]} 54. Bb5 {[%emt 0:00:00]} Be8 {[%emt 0:00:00]} 55. Bxe8 {[%emt 0:00:00]} Kxe8 {[%emt 0:00:00]} 56. Nc4 {[%emt 0:00:00]} Ra8 {[%emt 0:00:00]} 57. d6 {[%emt 0:00:00]} g6 {[%emt 0:00:00]} 58. Rd5 {[%emt 0:00:00]} Bf8 {[%emt 0:00:00]} 59. Rxc5 {[%emt 0:00:56]} Kf7 {[%emt 0:00:00]} 60. Rxa5 {[%emt 0:00:51]} Rxa5 {[%emt 0:00:00]} 61. Nxa5 {[%emt 0:00:14]} Bxd6 {[%emt 0:00:00]} 62. Kd3 {[%emt 0:00:33]} Ke6 {[%emt 0:00:00]} 63. Kc4 {[%emt 0:00:18]} Kd7 {[%emt 0:00:00]} 64. Kd5 {[%emt 0:06:43]} 1-0

[Event "26th OIBM 2023"]
[Site "Gmund am Tegernsee"]
[Date "2023.11.03"]
[Round "7.37"]
[White "Tillmann, Markus"]
[Black "Weber, Samuel"]
[Result "1-0"]
[ECO "E30"]
[WhiteElo "2085"]
[BlackElo "2267"]
[Annotator "RC"]
[PlyCount "73"]
[EventDate "2023.10.04"]
[EventType "swiss"]
[EventCountry "GER"]
[SourceTitle "playchess.com"]
[Source "ChessBase"]
[SourceQuality "1"]
[TimeControl "40/5400+30:1800+30"]

1. d4 {[%emt 0:00:03]} Nf6 {[%emt 0:00:13]} 2. c4 {[%emt 0:00:05]} e6 {[%emt 0:00:07]} 3. Nc3 {[%emt 0:00:06]} Bb4 {[%emt 0:00:07]} 4. Bg5 {[%emt 0:03:36]} c5 {[%emt 0:01:30]} 5. Bxf6 {[%emt 0:04:33]} Qxf6 {[%emt 0:10:58]} 6. e3 {[%emt 0:04:07]} Nc6 {[%emt 0:03:39]} 7. Nf3 {[%emt 0:00:09]} g5 {[%emt 0:03:46]} 8. a3 {[%emt 0:08:25]} Ba5 {[%emt 0:09:33]} 9. h3 {[%emt 0:22:16]} h5 {[%emt 0:09:17]} 10. b4 {[%emt 0:07:18]} cxb4 {[%emt 0:08:03]} 11. Ne4 {[%emt 0:00:24]} Qe7 {[%emt 0:11:20]} 12. c5 {[%emt 0:03:43]} b6 {[%emt 0:02:46]} 13. Bb5 {[%emt 0:05:06]} bxa3+ {[%emt 0:04:25]} 14. Kf1 {[%emt 0:00:14]} Kf8 {[%emt 0:10:54]} 15. d5 {[%emt 0:03:24]} exd5 {[%emt 0:00:18]} 16. Qxd5 {[%emt 0:00:08]} Rh6 {[%emt 0:00:08]} 17. Nd6 {[%emt 0:02:17]} bxc5 {[%emt 0:01:47]} 18. Nf5 {[%emt 0:00:20]} Qf6 {[%emt 0:01:33]} 19. Rxa3 {[%emt 0:01:33]} Qb2 {[%emt 0:02:26]} 20. Rxa5 {[%emt 0:00:44]} Nxa5 {[%emt 0:00:14]} 21. Nxh6 {[%emt 0:00:29]} Qxb5+ {[%emt 0:00:47]} 22. Kg1 {[%emt 0:00:21]} Qb1+ {[%emt 0:00:08]} 23. Kh2 {[%emt 0:00:12]} Qb8+ {[%emt 0:00:01]} 24. g3 {[%emt 0:00:37]} Ke8 {[%emt 0:00:31]} 25. Nxf7 {[%emt 0:11:18]} Qb2 {[%emt 0:01:46]} 26. Nd6+ {[%emt 0:06:40]} Ke7 {[%emt 0:03:33]} 27. Ne4 {[%emt 0:00:19]} Bb7 {[%emt 0:01:11]} 28. Qxg5+ {[%emt 0:00:07]} Ke8 {[%emt 0:01:43]} 29. Qxh5+ {[%emt 0:08:11]} Kd8 {[%emt 0:00:13]} 30. Qg5+ {[%emt 0:00:07]} Ke8 {[%emt 0:00:04]} 31. Nfd2 {[%emt 0:02:11]} d5 {[%emt 0:07:30]} 32. Rb1 {[%emt 0:00:21]} Qh8 {[%emt 0:00:06]} 33. Nd6+ {[%emt 0:00:10]} Kd7 {[%emt 0:00:49]} 34. Nxb7 {[%emt 0:00:09]} Rf8 {[%emt 0:00:04]} 35. Qxd5+ {[%emt 0:01:07]} Kc7 {[%emt 0:00:07]} 36. Qxc5+ {[%emt 0:01:02]} Nc6 {[%emt 0:00:03]} 37. Qd6+ {[%emt 0:00:12]} 1-0